bitfinex/quotes_ETHUSD_20230117
["timestamp","ask_amount","ask_price","bid_price","bid_amount"]
[1673956177626,0.09566073,1566.4,1566.3,21.84195771]
[1673956177891,0.09566073,1566.4,1566.3,21.8379999]
[1673956179437,1.05296614,1566.4,1566.3,21.8379999]
[1673956179902,0.09566073,1566.4,1566.3,21.8379999]
[1673956182311,0.09566073,1566.4,1566.3,19.19968811]
[1673956182503,1.05296614,1566.4,1566.3,19.19968811]
[1673956183429,0.09566073,1566.4,1566.3,19.19968811]
[1673956187992,1.05296614,1566.4,1566.3,19.19968811]
[1673956188625,1.05296614,1566.4,1566.3,6.43074811]
[1673956189402,2.48739688,1566.4,1566.3,6.43074811]
[1673956190617,1.55731538,1566.4,1566.3,0.04627811]
[1673956190771,2.03444071,1566.4,1566.2,9.43094811]
[1673956190984,0.95430661,1566.3,1566.2,9.43094811]
[1673956191525,0.95430661,1566.3,1566.2,6.43094811]
[1673956193874,0.95430661,1566.3,1566.2,12.81582811]
[1673956198715,0.95430661,1566.3,1566.2,6.43094811]
[1673956198910,2.38873735,1566.3,1566.2,6.43094811]
[1673956199235,2.38873735,1566.3,1566.2,6.42887126]
[1673956199652,1.43443074,1566.3,1566.2,6.42887126]
[1673956200236,2.3895897,1566.3,1566.2,6.42887126]
[1673956200471,0.95515896,1566.3,1566.2,6.42887126]
[1673956200901,1.43443074,1566.3,1566.2,6.42887126]
[1673956201134,1.83601829,1566.3,1566.2,0.04627811]
[1673956201437,1.83601829,1566.3,1566.1,12.81645811]
[1673956201607,0.95545136,1566.2,1566.1,12.81645811]
[1673956201818,0.95545136,1566.2,1566.1,15.81645811]
[1673956202075,0.95545136,1566.2,1566.1,12.81645811]
[1673956204858,1.43443074,1566.2,1566.1,0.04627811]
[1673956205086,1.67341895,1566.2,1566.0,19.52168424]
[1673956205295,0.95628202,1566.1,1566.0,10.38238424]
[1673956207693,0.95628202,1566.1,1566.0,9.43170811]
[1673956208556,1.43443074,1566.1,1566.0,3.04627811]
[1673956208913,1.79991612,1566.1,1566.0,3.0]
[1673956209430,1.79991612,1566.1,1565.9,23.80733811]
[1673956209587,0.95630636,1566.0,1565.9,23.79133811]
[1673956209801,0.95630636,1566.0,1565.9,26.79133811]
[1673956210334,0.073,1566.1,1565.9,25.32086218]
[1673956210566,2.3907371,1566.2,1566.1,20.26883999]
[1673956210758,2.3907371,1566.2,1566.1,20.3271181]
[1673956210759,0.95630636,1566.2,1566.1,20.3271181]
[1673956211422,2.3907371,1566.2,1566.1,20.3271181]
[1673956212480,0.95630636,1566.2,1566.1,20.3271181]
[1673956213960,2.3907371,1566.3,1566.1,22.91343853]
[1673956215059,0.95630636,1566.3,1566.1,26.52815418]
[1673956215301,0.09566073,1566.4,1566.2,5.445]
[1673956215635,0.09566073,1566.4,1566.3,20.37141]
[1673956215852,1.05196709,1566.4,1566.3,22.89535692]
[1673956216206,0.09566073,1566.4,1566.3,22.89535692]
[1673956217917,0.09566073,1566.4,1566.3,25.89535692]
[1673956217918,0.09866073,1566.4,1566.3,25.89535692]
[1673956218159,0.09566073,1566.4,1566.3,25.89535692]
[1673956219012,0.09566073,1566.4,1566.3,5.52394692]
[1673956219324,1.05196709,1566.4,1566.3,3.05827811]
[1673956219532,1.05196709,1566.4,1566.3,3.0]
[1673956220901,0.09566073,1566.4,1566.3,9.38447]
[1673956221094,0.09566073,1566.4,1566.3,9.44274811]
[1673956221302,1.05196709,1566.4,1566.3,11.66437892]
[1673956221693,0.09566073,1566.4,1566.3,18.04884892]
[1673956224881,0.09566073,1566.4,1566.3,28.77694299]
[1673956225207,1e-08,1566.4,1566.3,50.66031892]
[1673956225416,1e-08,1566.4,1566.3,49.43331892]
[1673956226423,1e-08,1566.4,1566.3,52.54994299]
[1673956226641,1e-08,1566.4,1566.3,49.45192892]
[1673956227981,1e-08,1566.4,1566.3,54.02555299]
[1673956228158,1e-08,1566.4,1566.3,54.04727299]
[1673956228531,1e-08,1566.4,1566.3,55.63119743]
[1673956229673,1e-08,1566.4,1566.3,54.04727299]
[1673956229844,1e-08,1566.4,1566.3,58.00694122]
[1673956230771,0.09566073,1566.5,1566.3,58.00694122]
[1673956231015,0.09566073,1566.5,1566.4,13.36431819]
[1673956231233,0.09566073,1566.5,1566.4,32.5747763]
[1673956232210,0.09566073,1566.5,1566.4,32.8217763]
[1673956240200,0.09566073,1566.5,1566.4,31.3577763]
[1673956247412,1e-08,1566.5,1566.4,31.3577763]
[1673956250600,1e-08,1566.6,1566.4,31.3577763]
[1673956250735,1e-08,1566.6,1566.5,22.28672763]
[1673956250940,1e-08,1566.6,1566.5,25.34500574]
[1673956255387,0.95630637,1566.6,1566.5,25.34500574]
[1673956255913,1e-08,1566.6,1566.5,25.34500574]
[1673956258981,0.95630637,1566.6,1566.5,25.34500574]
[1673956259500,1e-08,1566.6,1566.5,25.34500574]
[1673956260335,1e-08,1566.6,1566.5,26.92884371]
[1673956261636,1e-08,1566.6,1566.5,29.30460878]
[1673956261844,1e-08,1566.6,1566.5,26.92884371]
[1673956262583,0.95630637,1566.6,1566.5,25.34500574]
[1673956262765,0.95630637,1566.6,1566.5,22.20922811]
[1673956264033,0.95630637,1566.6,1566.5,23.79311242]
[1673956264858,0.95630637,1566.6,1566.5,22.20922811]
[1673956265277,0.95630637,1566.6,1566.5,23.79311717]
[1673956265497,1e-08,1566.6,1566.5,23.79311717]
[1673956265666,0.95630637,1566.6,1566.5,29.58603271]
[1673956265876,1e-08,1566.6,1566.5,31.96180083]
[1673956268607,1e-08,1566.6,1566.5,26.16888529]
[1673956268813,0.95630637,1566.6,1566.5,22.20922811]
[1673956274644,2.65343075,1566.6,1566.5,6.43960857]
[1673956274804,5.04086558,1566.6,1566.5,0.05827811]
[1673956275019,5.10886558,1566.6,1566.4,12.82639811]
[1673956275231,0.957128,1566.5,1566.4,12.82639811]
[1673956275432,2.39155874,1566.5,1566.4,15.82639811]
[1673956275648,2.39155874,1566.5,1566.4,9.44233811]
[1673956275839,2.66043074,1566.5,1566.4,3.05827811]
[1673956276078,3.13443483,1566.5,1566.4,3.0]
[1673956276414,4.1142358,1566.5,1566.4,3.0]
[1673956276574,4.1142358,1566.5,1566.3,25.06227811]
[1673956276786,2.18271522,1566.4,1566.3,25.05827811]
[1673956276995,2.18271522,1566.4,1566.3,28.05827811]
[1673956279647,1.226,1566.4,1566.3,47.21168811]
[1673956280076,3.61781593,1566.5,1566.3,47.21168811]
[1673956280267,4.34704101,1566.5,1566.3,28.05827811]
[1673956280626,2.18271522,1566.4,1566.3,28.05827811]
[1673956282722,2.18271522,1566.4,1566.3,25.05827811]
[1673956282947,15.77521961,1566.4,1566.3,25.05827811]
[1673956283105,15.84321961,1566.4,1566.3,25.05827811]
[1673956283313,18.07989866,1566.4,1566.3,25.05827811]
[1673956284215,18.0782404,1566.4,1566.3,25.05827811]
[1673956285190,16.16980557,1566.4,1566.3,25.05827811]
[1673956285836,22.55386557,1566.4,1566.3,25.05827811]
[1673956286303,30.16392557,1566.4,1566.3,25.05827811]
[1673956286484,38.69745575,1566.4,1566.3,25.05827811]
[1673956286659,39.34379493,1566.4,1566.3,25.05827811]
[1673956287716,31.98679493,1566.4,1566.3,25.05827811]
[1673956288160,31.50935367,1566.4,1566.3,25.05827811]
[1673956289320,24.89529367,1566.4,1566.3,25.05827811]
[1673956289492,24.24895449,1566.4,1566.3,25.05827811]
[1673956290182,17.86489449,1566.4,1566.3,25.05827811]
[1673956290341,17.38691244,1566.4,1566.3,25.05827811]
[1673956291011,11.00285244,1566.4,1566.3,25.05827811]
[1673956291218,11.95717195,1566.4,1566.3,25.05827811]
[1673956291599,11.95712125,1566.4,1566.3,25.05827811]
[1673956291816,10.73112125,1566.4,1566.3,25.05827811]
[1673956292127,9.29957193,1566.4,1566.3,25.05827811]
[1673956295856,8.32057193,1566.4,1566.3,25.05827811]
[1673956297855,8.32057193,1566.4,1566.3,25.05470012]
[1673956298954,2.96726881,1566.4,1566.3,25.05470012]
[1673956299165,1.466,1566.4,1566.3,25.05470012]
[1673956302763,10.28951813,1566.5,1566.3,25.05470012]
[1673956302999,13.4061422,1566.5,1566.3,25.05470012]
[1673956303321,0.95426881,1566.4,1566.3,25.05470012]
[1673956304668,4.39928903,1566.4,1566.3,25.05470012]
[1673956306100,4.87656954,1566.4,1566.3,25.05470012]
[1673956308056,5.83128504,1566.4,1566.3,25.05470012]
[1673956308362,4.94456954,1566.4,1566.3,25.05470012]
[1673956308576,4.67656954,1566.4,1566.3,25.05470012]
[1673956308901,27.42335566,1566.4,1566.3,25.05470012]
[1673956309042,34.39621006,1566.4,1566.3,25.05470012]
[1673956309900,30.7811361,1566.4,1566.3,25.05470012]
[1673956311831,30.13479692,1566.4,1566.3,25.05470012]
[1673956313211,27.74782429,1566.4,1566.3,25.05470012]
[1673956314139,30.61462063,1566.4,1566.3,25.05470012]
[1673956314310,33.46323743,1566.4,1566.3,25.05470012]
[1673956314871,32.71613595,1566.4,1566.3,25.05470012]
[1673956315235,28.91679677,1566.4,1566.3,25.05470012]
[1673956315448,28.43856614,1566.4,1566.3,25.05470012]
[1673956317135,26.04882429,1566.4,1566.3,25.05470012]
[1673956317778,28.43868378,1566.4,1566.3,25.05470012]
[1673956318019,26.04882429,1566.4,1566.3,25.05470012]
[1673956322862,28.43994155,1566.4,1566.3,25.05470012]
[1673956325146,27.96094155,1566.4,1566.3,25.05470012]
[1673956325871,25.56982429,1566.4,1566.3,25.05470012]
[1673956326023,27.96099461,1566.4,1566.3,25.05470012]
[1673956326215,25.56982429,1566.4,1566.3,25.05470012]
[1673956326829,27.96099627,1566.4,1566.3,25.05470012]
[1673956327193,25.56982429,1566.4,1566.3,25.05470012]
[1673956328247,27.96101661,1566.4,1566.3,25.05470012]
[1673956329515,25.56982429,1566.4,1566.3,25.052357]
[1673956329725,27.96108864,1566.4,1566.3,25.052357]
[1673956331052,28.95408864,1566.4,1566.3,25.052357]
[1673956332983,27.72708864,1566.4,1566.3,25.052357]
[1673956334658,19.56400842,1566.4,1566.3,25.052357]
[1673956334869,1.98087927,1566.4,1566.3,25.052357]
[1673956335091,3.34749094,1566.4,1566.3,25.052357]
[1673956335551,1.43461167,1566.4,1566.3,25.052357]
[1673956335968,1.43461167,1566.4,1566.3,31.436827]
[1673956336227,1.43461167,1566.4,1566.3,35.9804387]
[1673956337337,2.39082289,1566.4,1566.3,35.9804387]
[1673956337758,0.95621122,1566.4,1566.3,43.5839087]
[1673956337970,2.39076731,1566.5,1566.3,49.9683787]
[1673956338181,2.39076731,1566.5,1566.4,25.37601787]
[1673956338182,0.95615564,1566.5,1566.4,25.37601787]
[1673956338457,0.95615564,1566.5,1566.4,25.43429598]
[1673956339701,2.39076732,1566.6,1566.4,28.43429598]
[1673956339854,0.95615565,1566.6,1566.5,3.8434296]
[1673956340075,0.95615565,1566.6,1566.5,16.6107296]
[1673956340289,0.95615565,1566.6,1566.5,23.05265771]
[1673956340500,0.95615565,1566.6,1566.5,22.05265771]
[1673956340700,0.95615565,1566.6,1566.5,9.28535771]
[1673956342651,0.95615565,1566.6,1566.5,0.05827811]
[1673956342802,1.43461168,1566.6,1566.3,42.167527]
[1673956343014,0.9552726,1566.5,1566.3,42.163527]
[1673956343676,0.9552726,1566.5,1566.3,34.552057]
[1673956344013,2.38988427,1566.5,1566.3,34.552057]
[1673956345639,0.9552726,1566.5,1566.3,34.552057]
[1673956345866,2.38988427,1566.5,1566.3,34.552057]
[1673956346334,0.9552726,1566.5,1566.3,34.552057]
[1673956347059,0.9552726,1566.5,1566.3,51.04284402]
[1673956347589,0.9552726,1566.5,1566.3,57.42731402]
[1673956348272,2.38988428,1566.6,1566.3,57.42731402]
[1673956350108,2.38988428,1566.6,1566.3,39.49492402]
[1673956350428,2.38988428,1566.6,1566.3,58.64831402]
[1673956350601,0.9552726,1566.5,1566.3,58.64831402]
[1673956351001,0.9552726,1566.5,1566.4,5.8648314]
[1673956351262,0.9552726,1566.5,1566.4,12.30716951]
[1673956351644,2.38988428,1566.6,1566.4,12.30716951]
[1673956352079,2.38988428,1566.6,1566.4,5.92310951]
[1673956352080,0.9552726,1566.5,1566.4,5.92310951]
[1673956352403,0.9552726,1566.5,1566.4,0.05827811]
[1673956352583,0.9552726,1566.5,1566.3,52.26384402]
[1673956353589,0.9552726,1566.5,1566.3,45.87937402]
[1673956354577,0.9552726,1566.5,1566.3,42.157507]
[1673956354892,2.38988427,1566.5,1566.3,42.157507]
[1673956355103,0.9552726,1566.5,1566.3,42.157507]
[1673956355420,2.38988427,1566.5,1566.3,42.157507]
[1673956356135,2.38988427,1566.5,1566.3,40.936507]
[1673956359359,0.9552726,1566.4,1566.3,40.936507]
[1673956359553,0.9552726,1566.4,1566.3,43.936507]
[1673956359727,2.38988427,1566.5,1566.3,43.936507]
[1673956360903,2.38988427,1566.5,1566.3,50.45881329]
[1673956361121,0.9552726,1566.5,1566.3,64.69175329]
[1673956362608,2.38988427,1566.5,1566.3,64.69175329]
[1673956362823,0.9552726,1566.4,1566.3,28.04956349]
[1673956368651,2.38988427,1566.5,1566.3,47.20297349]
[1673956368862,0.9552726,1566.5,1566.3,47.20297349]
[1673956370161,0.9552726,1566.5,1566.4,1.464]
[1673956370377,0.9552726,1566.5,1566.4,25.84438475]
[1673956370592,0.9552726,1566.5,1566.4,25.90266286]
[1673956371284,0.9552726,1566.5,1566.4,28.90266286]
[1673956371542,2.39082311,1566.6,1566.4,28.90266286]
[1673956371706,2.39082312,1566.6,1566.4,28.90266286]
[1673956372076,2.39082312,1566.6,1566.5,22.04121629]
[1673956372077,2.39082161,1566.6,1566.5,22.04121629]
[1673956372225,2.39082161,1566.6,1566.5,22.0994944]
[1673956373502,1.43461168,1566.6,1566.5,22.0994944]
[1673956375603,2.39111383,1566.6,1566.5,22.0994944]
[1673956376671,1.43461168,1566.6,1566.5,22.0994944]
[1673956377020,2.39110224,1566.6,1566.5,22.0994944]
[1673956382756,0.95649057,1566.6,1566.5,22.0994944]
[1673956384861,0.95619391,1566.6,1566.5,19.20922811]
[1673956397076,2.50120172,1566.7,1566.6,0.94797763]
[1673956397285,1.06659005,1566.7,1566.6,2.17397763]
[1673956397508,1.06659005,1566.7,1566.6,23.4624482]
[1673956397738,1.06659005,1566.7,1566.6,23.52072631]
[1673956399437,0.11039615,1566.7,1566.6,23.52072631]
[1673956400453,2.50120172,1566.7,1566.6,1.00625574]
[1673956400663,2.50084632,1566.7,1566.6,0.94797763]
[1673956400873,2.50083623,1566.7,1566.6,0.94797763]
[1673956404419,2.50083623,1566.7,1566.6,7.33122763]
[1673956404551,2.50083623,1566.7,1566.6,7.38950574]
[1673956405562,1.54500782,1566.7,1566.6,7.38950574]
[1673956406663,1.54500782,1566.7,1566.6,1.00625574]
[1673956406898,3.45788709,1566.7,1566.6,0.94797763]
[1673956408478,3.45788709,1566.7,1566.5,19.21253811]
[1673956408693,0.95669061,1566.6,1566.5,19.20853811]
[1673956408884,0.95669061,1566.6,1566.5,22.20853811]
[1673956409656,2.39130228,1566.6,1566.5,22.20853811]
[1673956410548,0.95669061,1566.6,1566.5,24.43068084]
[1673956412240,0.003,1566.6,1566.5,26.01455321]
[1673956412452,2.50169843,1566.7,1566.5,26.01455321]
[1673956412679,2.50169843,1566.7,1566.5,24.43068084]
[1673956413614,1.06708676,1566.7,1566.5,24.43068084]
[1673956413811,1.06708676,1566.7,1566.6,21.59281808]
[1673956414021,1.06708676,1566.7,1566.6,21.65109619]
[1673956415958,0.11039615,1566.7,1566.6,21.65109619]
[1673956417057,0.11039615,1566.7,1566.6,24.65109619]
[1673956422530,1e-08,1566.7,1566.6,28.61027438]
[1673956423583,1e-08,1566.7,1566.6,29.82527438]
[1673956424263,1e-08,1566.7,1566.6,29.82529348]
[1673956425278,2.86797249,1566.7,1566.6,25.86609619]
[1673956425477,2.86797249,1566.7,1566.6,24.65109619]
[1673956426312,1e-08,1566.7,1566.6,24.65109619]
[1673956426554,1e-08,1566.7,1566.6,28.61010832]
[1673956427223,1e-08,1566.7,1566.6,29.56169248]
[1673956428222,1e-08,1566.7,1566.6,28.61010832]
[1673956430322,1e-08,1566.7,1566.6,29.56169248]
[1673956431389,1e-08,1566.7,1566.6,28.61010832]
[1673956434002,1e-08,1566.7,1566.6,29.56169248]
[1673956434417,1e-08,1566.7,1566.6,28.61010832]
[1673956438732,0.61236296,1567.2,1567.1,19.65276347]
[1673956438937,0.60936296,1567.2,1567.1,19.65276347]
[1673956439208,0.60936296,1567.2,1567.1,0.50913347]
[1673956439422,0.60936296,1567.2,1567.1,0.44885536]
[1673956439948,0.60936296,1567.2,1567.1,6.83006536]
[1673956440261,0.60936296,1567.2,1567.1,0.50913347]
[1673956440415,0.77843121,1567.2,1567.1,0.44885536]
[1673956441748,7.15923121,1567.2,1567.1,0.44885536]
[1673956441884,7.22623121,1567.2,1567.1,0.44885536]
[1673956442305,0.84543121,1567.2,1567.1,0.44885536]
[1673956442567,0.77843121,1567.2,1567.1,0.44885536]
[1673956442782,7.15923121,1567.2,1567.1,0.44885536]
[1673956442969,7.22623121,1567.2,1567.1,0.44885536]
[1673956443186,0.84543121,1567.2,1567.1,0.44885536]
[1673956443368,0.77843121,1567.2,1567.1,0.44885536]
[1673956444137,0.60649193,1567.2,1567.1,0.44885536]
[1673956445432,0.60649193,1567.2,1567.1,6.83006536]
[1673956445656,0.60649193,1567.2,1567.1,6.89034347]
[1673956447060,0.12769193,1567.2,1567.1,19.65276347]
[1673956452737,0.12769193,1567.2,1567.1,13.27155347]
[1673956452948,0.12769193,1567.2,1567.1,6.89034347]
[1673956454896,0.12769193,1567.2,1567.1,0.50913347]
[1673956455088,0.12769193,1567.2,1567.1,0.44885536]
[1673956456055,0.07769193,1567.2,1567.1,0.44885536]
[1673956457069,0.98443308,1567.2,1567.1,0.44885536]
[1673956457722,2.44643308,1567.2,1567.1,0.44885536]
[1673956458133,2.92523308,1567.2,1567.1,0.44885536]
[1673956458764,9.30603308,1567.2,1567.1,0.44885536]
[1673956458979,9.37303308,1567.2,1567.1,0.44885536]
[1673956459848,2.99223308,1567.2,1567.1,0.44885536]
[1673956460002,2.92523308,1567.2,1567.1,0.44885536]
[1673956463071,2.44643308,1567.2,1567.1,0.44885536]
[1673956465566,3.97759208,1567.2,1567.1,0.39885536]
[1673956466209,6.36597438,1567.2,1567.1,0.39885536]
[1673956466437,6.43297438,1567.2,1567.1,0.39885536]
[1673956467559,5.52623323,1567.2,1567.1,6.78006536]
[1673956467775,2.63120385,1567.2,1567.1,6.84034347]
[1673956467986,2.56420385,1567.2,1567.1,6.84034347]
[1673956468301,2.56420385,1567.2,1567.1,0.45913347]
[1673956468516,5.25837088,1567.2,1567.1,0.39885536]
[1673956468759,5.32537088,1567.2,1567.1,0.39885536]
[1673956468928,12.18384735,1567.2,1567.1,0.39885536]
[1673956469457,5.80304735,1567.2,1567.1,0.39885536]
[1673956469609,5.32644105,1567.2,1567.1,0.39885536]
[1673956470365,4.56995048,1567.2,1567.1,0.39885536]
[1673956470571,4.50295048,1567.2,1567.1,0.39885536]
[1673956471438,6.41365633,1567.2,1567.1,0.39885536]
[1673956471607,6.48065633,1567.2,1567.1,0.39885536]
[1673956472096,7.46765633,1567.2,1567.1,0.39885536]
[1673956472261,6.03355678,1567.2,1567.1,0.39885536]
[1673956472473,7.46815982,1567.2,1567.1,0.39885536]
[1673956472884,6.24715982,1567.2,1567.1,0.39885536]
[1673956474994,6.24723801,1567.2,1567.1,0.39885536]
[1673956476507,4.81255678,1567.2,1567.1,0.39885536]
[1673956476696,4.74555678,1567.2,1567.1,0.39885536]
[1673956476863,6.11630735,1567.2,1567.1,0.39885536]
[1673956477070,12.56410735,1567.2,1567.1,0.39885536]
[1673956478020,6.18330735,1567.2,1567.1,0.39885536]
[1673956479384,6.24737022,1567.2,1567.1,0.39885536]
[1673956479852,11.19335678,1567.2,1567.1,0.39885536]
[1673956480070,18.80015678,1567.2,1567.1,0.39885536]
[1673956480274,25.18095678,1567.2,1567.1,0.39885536]
[1673956480699,25.65863324,1567.2,1567.1,0.39885536]
[1673956481387,28.77525731,1567.2,1567.1,0.39885536]
[1673956482781,29.25405731,1567.2,1567.1,0.39885536]
[1673956486428,29.25405731,1567.2,1567.1,0.39540077]
[1673956486952,29.73364748,1567.2,1567.1,0.39540077]
[1673956487179,26.865675,1567.2,1567.1,0.39540077]
[1673956487797,29.73364748,1567.2,1567.1,0.39540077]
[1673956488441,26.865675,1567.2,1567.1,0.39540077]
[1673956488652,6.99653765,1567.2,1567.1,0.39540077]
[1673956488870,8.42957037,1567.2,1567.1,0.39540077]
[1673956489333,6.03968365,1567.2,1567.1,0.39540077]
[1673956489543,4.81368365,1567.2,1567.1,0.39540077]
[1673956489700,4.74668365,1567.2,1567.1,0.39540077]
[1673956490916,6.18061661,1567.2,1567.1,0.39540077]
[1673956491225,6.24761661,1567.2,1567.1,0.39540077]
[1673956491904,5.29169241,1567.2,1567.1,0.39540077]
[1673956492323,5.29169241,1567.2,1567.1,8.73683366]
[1673956492324,4.06569241,1567.2,1567.1,8.73683366]
[1673956492543,2.56475945,1567.2,1567.1,15.17832177]
[1673956497074,2.56466438,1567.2,1567.1,21.55953177]
[1673956497404,1.60885093,1567.2,1567.1,21.55953177]
[1673956498071,1.60885093,1567.2,1567.1,33.82302018]
[1673956498208,1.15926434,1567.5,1567.4,0.70607636]
[1673956498412,1.15926434,1567.5,1567.4,13.536664]
[1673956498413,0.13745197,1567.5,1567.4,13.536664]
[1673956498676,0.13745197,1567.5,1567.4,13.59894211]
[1673956499415,0.13745197,1567.5,1567.4,16.59894211]
[1673956499627,0.13745197,1567.5,1567.4,19.40778623]
[1673956499993,5.197e-05,1567.5,1567.4,22.5244103]
[1673956500203,0.95581237,1567.8,1567.6,6.37917]
[1673956500468,2.45574533,1567.9,1567.7,0.637917]
[1673956500623,2.08132838,1568.0,1567.8,1.226]
[1673956500624,0.23549566,1568.0,1567.8,1.226]
[1673956500836,0.23549566,1568.0,1567.8,7.60436]
[1673956500837,0.16949566,1568.0,1567.8,7.60436]
[1673956501043,1.12530803,1568.0,1567.9,3.0]
[1673956501309,1.12306291,1568.0,1567.9,3.0]
[1673956501459,0.16725054,1568.0,1567.9,3.94406381]
[1673956501924,1.12306291,1568.0,1567.9,3.94406381]
[1673956502110,2.12306291,1568.0,1567.8,3.06227811]
[1673956502321,0.95581237,1567.9,1567.7,0.70019511]
[1673956502565,0.95581237,1567.9,1567.7,3.637917]
[1673956502931,0.95581237,1567.9,1567.6,19.27927811]
[1673956502932,0.95581237,1567.8,1567.6,19.27927811]
[1673956503147,3.61574533,1567.8,1567.6,0.06227811]
[1673956503372,3.61574533,1567.8,1567.5,11.5307]
[1673956503373,3.61574533,1567.8,1567.5,11.59297811]
[1673956503618,0.88181237,1567.8,1567.5,11.59297811]
[1673956503934,2.31574533,1567.8,1567.5,11.59297811]
[1673956504145,1.78517017,1567.8,1567.5,11.59097811]
[1673956504360,1.78317017,1567.8,1567.5,11.59297811]
[1673956504527,3.21710313,1567.8,1567.5,11.59297811]
[1673956504720,1.78317017,1567.8,1567.5,11.59297811]
[1673956504931,1.36041237,1567.8,1567.5,11.59297811]
[1673956505458,0.23325054,1568.0,1567.5,19.19429811]
[1673956505701,0.16725054,1568.0,1567.6,3.0]
[1673956505915,0.16725054,1568.0,1567.6,19.1152]
[1673956506279,0.16725054,1568.0,1567.7,1.91152]
[1673956506576,0.16725054,1568.0,1567.7,8.2902]
[1673956506759,0.16725054,1568.0,1567.7,9.35247811]
[1673956507318,0.16725054,1568.0,1567.8,3.0]
[1673956507492,0.16725054,1568.0,1567.8,9.37829]
[1673956507697,0.16725054,1568.0,1567.9,0.937829]
[1673956508953,0.16725054,1568.0,1567.9,1.937829]
[1673956509149,0.16725054,1568.0,1567.9,0.937829]
[1673956510907,0.16725054,1568.0,1567.8,14.75427811]
[1673956513143,0.16725054,1568.0,1567.8,27.51064811]
[1673956514085,0.16725054,1568.0,1567.8,21.13228811]
[1673956514730,0.16725054,1568.0,1567.8,27.51064811]
[1673956515268,0.16725054,1568.0,1567.8,28.96964811]
[1673956515471,0.16725054,1568.0,1567.9,2.89696481]
[1673956515697,0.16725054,1568.0,1567.9,18.65286481]
[1673956515945,0.16725054,1568.0,1567.9,18.71514292]
[1673956517727,0.18771562,1568.1,1568.0,1.0]
[1673956518067,1e-08,1568.1,1568.0,14.67891712]
[1673956518215,1e-08,1568.1,1568.0,17.74119523]
[1673956518628,1e-08,1568.1,1568.0,17.97119523]
[1673956518831,1e-08,1568.1,1568.0,18.61753441]
[1673956519929,1e-08,1568.1,1568.0,18.63526441]
[1673956520254,0.17384624,1568.3,1568.0,29.79109012]
[1673956520474,0.17384624,1568.3,1568.2,20.57919]
[1673956520811,0.17384624,1568.3,1568.2,26.75809218]
[1673956521353,0.17384624,1568.3,1568.2,37.85134094]
[1673956521780,0.17384624,1568.3,1568.2,36.40234094]
[1673956522530,0.17384624,1568.3,1568.2,25.30909218]
[1673956522853,0.17384624,1568.3,1568.2,28.2841123]
[1673956524985,0.17384624,1568.3,1568.2,28.3525323]
[1673956525204,0.17384624,1568.3,1568.2,28.2841123]
[1673956526725,0.17384624,1568.3,1568.2,34.6608423]
[1673956527386,0.17384624,1568.3,1568.2,36.76918148]
[1673956527387,4.624e-05,1568.3,1568.2,36.76918148]
[1673956527995,4.624e-05,1568.3,1568.2,40.35850584]
[1673956528209,4.624e-05,1568.3,1568.2,36.99918148]
[1673956529026,4.624e-05,1568.3,1568.2,40.58850584]
[1673956529239,4.624e-05,1568.3,1568.2,42.04450584]
[1673956529447,0.23984624,1568.6,1568.3,5.20645058]
[1673956529689,0.18548586,1568.8,1568.6,19.12533]
[1673956529936,0.18548586,1568.8,1568.7,12.72132407]
[1673956530080,0.18548586,1568.8,1568.7,31.41564136]
[1673956533461,0.0059158,1568.9,1568.7,31.41564136]
[1673956533651,0.0059158,1568.9,1568.8,21.10210739]
[1673956533870,0.0059158,1568.9,1568.8,22.06904632]
[1673956534529,0.0059158,1568.9,1568.8,28.67333632]
[1673956535538,0.0059158,1568.9,1568.8,28.44333632]
[1673956535787,5.8e-06,1568.9,1568.8,28.44333632]
[1673956536019,0.0102339,1569.0,1568.8,34.37177929]
[1673956536190,0.0102339,1569.0,1568.9,30.354472]
[1673956536405,0.0102339,1569.0,1568.9,31.0480427]
[1673956537282,0.196216,1569.1,1568.9,34.65319308]
[1673956537475,0.4781,1569.5,1569.0,5.57862407]
[1673956537808,0.4781,1569.5,1569.1,33.29910407]
[1673956537997,0.4781,1569.5,1569.3,19.11678]
[1673956538169,0.4781,1569.5,1569.3,19.17905811]
[1673956538855,0.4781,1569.5,1569.3,6.43453811]
[1673956539461,1.4781,1569.5,1569.3,6.43453811]
[1673956539779,4.59472407,1569.5,1569.3,0.06227811]
[1673956539995,0.45947241,1569.4,1569.2,6.43454811]
[1673956540236,0.4782,1569.3,1569.2,6.43454811]
[1673956540450,0.4782,1569.3,1569.2,0.06227811]
[1673956540770,1.4782,1569.3,1569.1,6.43522811]
[1673956541687,0.4782,1569.3,1569.1,12.80830811]
[1673956542446,0.4782,1569.3,1569.1,19.18138811]
[1673956542600,0.4781,1569.4,1569.1,12.80830811]
[1673956542812,3.74253407,1569.4,1569.1,6.43522811]
[1673956543232,1.449,1569.2,1569.1,0.06227811]
[1673956543440,6.50582407,1569.2,1568.8,6.43634811]
[1673956543689,1.462,1568.9,1568.8,6.43634811]
[1673956543866,0.51296274,1568.9,1568.8,6.43634811]
[1673956544281,0.51296274,1568.9,1568.8,12.81063811]
[1673956545552,0.51296274,1568.9,1568.8,19.18492811]
[1673956545970,0.31296274,1568.9,1568.8,19.18492811]
[1673956546432,2.9352,1569.1,1568.8,19.18492811]
[1673956546649,2.64698241,1569.1,1568.8,19.18492811]
[1673956546871,1.9352,1569.1,1568.8,19.18492811]
[1673956548554,1.0,1569.0,1568.8,19.18292811]
[1673956548739,1.0,1569.0,1568.8,19.18492811]
[1673956549490,1.0,1569.0,1568.8,6.43634811]
[1673956550014,1.449,1568.9,1568.8,0.06227811]
[1673956550220,1.449,1568.9,1568.7,12.81149811]
[1673956550717,1.449,1568.9,1568.7,6.43688811]
[1673956551069,1.6939,1568.9,1568.7,6.43688811]
[1673956551649,1.451,1568.8,1568.7,6.43688811]
[1673956552845,1.451,1568.8,1568.7,0.06227811]
[1673956553174,1.451,1568.8,1568.6,12.77403811]
[1673956555487,1.9353,1568.9,1568.6,12.77403811]
[1673956555701,0.066,1569.0,1568.7,1.27740381]
[1673956556003,21.52378784,1569.2,1568.8,12.74858]
[1673956556168,7.50631191,1569.2,1568.8,12.77285811]
[1673956556376,6.07237895,1569.2,1568.8,12.77285811]
[1673956556642,1.94955488,1569.1,1568.8,12.77285811]
[1673956556799,0.94955488,1569.1,1568.8,12.77285811]
[1673956557141,9.23125737,1569.2,1568.8,12.77285811]
[1673956557359,0.94955488,1569.1,1568.8,12.77285811]
[1673956557691,0.94955488,1569.1,1568.8,19.14714811]
[1673956557863,0.94955488,1569.1,1568.8,21.06186292]
[1673956558788,1.01555488,1569.2,1568.8,21.06186292]
[1673956558997,0.94955488,1569.3,1568.8,21.69315551]
[1673956559208,0.94955488,1569.3,1568.9,2.16931555]
[1673956559418,0.94955488,1569.3,1569.0,12.74682]
[1673956559686,0.94955488,1569.3,1569.0,12.77109811]
[1673956560277,0.94955488,1569.3,1569.0,6.39767811]
[1673956560691,1.01555488,1569.4,1569.1,3.11662407]